[Event "*** Titled Tuesday Blitz"]
[Site "Chess.com"]
[Date "2020.05.12"]
[Round "8"]
[White "j2806"]
[Black "AniJak"]
[Result "0-1"]
[WhiteElo "1974"]
[BlackElo "2204"]
[TimeControl "180+1"]
[EndTime "11:33:39 PDT"]
[Termination "AniJak won by checkmate"]

1. e4 {[%clk 0:02:58.3]} 1... c6 {[%clk 0:02:57.3]} 2. d4 {[%clk 0:02:57.6]}
2... d5 {[%clk 0:02:57.3]} 3. exd5 {[%clk 0:02:58.2]} 3... cxd5 {[%clk
0:02:57.5]} 4. Bd3 {[%clk 0:02:58.8]} 4... Nc6 {[%clk 0:02:56.5]} 5. c3 {[%clk
0:02:59.1]} 5... Nf6 {[%clk 0:02:56]} 6. Ne2 {[%clk 0:02:59]} 6... Bg4 {[%clk
0:02:55.2]} 7. O-O {[%clk 0:02:58.8]} 7... e6 {[%clk 0:02:55.2]} 8. Qe1 {[%clk
0:02:58.2]} 8... Bxe2 {[%clk 0:02:53.3]} 9. Qxe2 {[%clk 0:02:58.4]} 9... Be7
{[%clk 0:02:53]} 10. Nd2 {[%clk 0:02:57.2]} 10... O-O {[%clk 0:02:52.5]} 11. f4
{[%clk 0:02:56.8]} 11... Re8 {[%clk 0:02:46.8]} 12. Nf3 {[%clk 0:02:56.2]} 12...
a6 {[%clk 0:02:42.5]} 13. Ne5 {[%clk 0:02:55.6]} 13... g6 {[%clk 0:02:35.9]} 14.
a4 {[%clk 0:02:55.1]} 14... Nd7 {[%clk 0:02:33.5]} 15. Bd2 {[%clk 0:02:42.7]}
15... Bf6 {[%clk 0:02:33]} 16. Kh1 {[%clk 0:02:40.8]} 16... Rc8 {[%clk
0:02:29.2]} 17. Rac1 {[%clk 0:02:25.8]} 17... Bg7 {[%clk 0:02:26.1]} 18. Qf3
{[%clk 0:02:10.8]} 18... Na5 {[%clk 0:02:23.5]} 19. Rce1 {[%clk 0:01:57.8]}
19... Nb6 {[%clk 0:02:21.2]} 20. Qd1 {[%clk 0:01:50.9]} 20... Nac4 {[%clk
0:02:19.3]} 21. Bc1 {[%clk 0:01:50]} 21... Nd6 {[%clk 0:02:06.5]} 22. Rf3 {[%clk
0:01:31.4]} 22... Nbc4 {[%clk 0:02:02.2]} 23. Rh3 {[%clk 0:01:26.2]} 23... b5
{[%clk 0:01:45.7]} 24. axb5 {[%clk 0:01:25]} 24... axb5 {[%clk 0:01:45.7]} 25.
Nxc4 {[%clk 0:01:23.4]} 25... bxc4 {[%clk 0:01:44.9]} 26. Bc2 {[%clk 0:01:21.5]}
26... Rb8 {[%clk 0:01:44.9]} 27. Rf3 {[%clk 0:01:12.6]} 27... Ra8 {[%clk
0:01:43.8]} 28. Qe2 {[%clk 0:01:07.6]} 28... Qc7 {[%clk 0:01:42]} 29. g4 {[%clk
0:01:04.7]} 29... Qb7 {[%clk 0:01:29.1]} 30. f5 {[%clk 0:00:59.8]} 30... exf5
{[%clk 0:01:28.2]} 31. Qf1 {[%clk 0:00:48.6]} 31... Rxe1 {[%clk 0:01:27.9]} 32.
Qxe1 {[%clk 0:00:48.4]} 32... Re8 {[%clk 0:01:27.7]} 33. Qg3 {[%clk 0:00:45.3]}
33... fxg4 {[%clk 0:01:25.6]} 34. Rf1 {[%clk 0:00:44.8]} 34... Ne4 {[%clk
0:01:18.9]} 35. Qxg4 {[%clk 0:00:41.9]} 35... f5 {[%clk 0:01:17.6]} 36. Qf3
{[%clk 0:00:39.3]} 36... Qc7 {[%clk 0:01:12.8]} 37. Bf4 {[%clk 0:00:38]} 37...
Qb7 {[%clk 0:01:12.3]} 38. Bc1 {[%clk 0:00:37.8]} 38... Qe7 {[%clk 0:01:11.4]}
39. Kg2 {[%clk 0:00:34.3]} 39... Qh4 {[%clk 0:01:09.1]} 40. Bf4 {[%clk
0:00:29.6]} 40... Bh6 {[%clk 0:01:05.1]} 41. Bxh6 {[%clk 0:00:28.3]} 41... Qxh6
{[%clk 0:01:04.5]} 42. Bxe4 {[%clk 0:00:27.8]} 42... dxe4 {[%clk 0:01:03.4]} 43.
Qe2 {[%clk 0:00:27.7]} 43... Rc8 {[%clk 0:00:57.9]} 44. Rb1 {[%clk 0:00:25.6]}
44... Qg5+ {[%clk 0:00:57.4]} 45. Kh1 {[%clk 0:00:25]} 45... e3 {[%clk
0:00:54.2]} 46. Re1 {[%clk 0:00:24.2]} 46... f4 {[%clk 0:00:53.9]} 47. Qf3
{[%clk 0:00:24.3]} 47... Qf5 {[%clk 0:00:50.8]} 48. d5 {[%clk 0:00:23.6]} 48...
g5 {[%clk 0:00:48.3]} 49. d6 {[%clk 0:00:22.8]} 49... Rd8 {[%clk 0:00:43.2]} 50.
Rd1 {[%clk 0:00:22.2]} 50... g4 {[%clk 0:00:36.6]} 51. Qc6 {[%clk 0:00:21.3]}
51... Qe6 {[%clk 0:00:17.8]} 52. Qg2 {[%clk 0:00:19.5]} 52... e2 {[%clk
0:00:16.7]} 53. Re1 {[%clk 0:00:19.3]} 53... f3 {[%clk 0:00:16.8]} 54. Qf2
{[%clk 0:00:19.5]} 54... Rxd6 {[%clk 0:00:16.7]} 55. h3 {[%clk 0:00:18.6]} 55...
Rd1 {[%clk 0:00:13.8]} 56. hxg4 {[%clk 0:00:18.1]} 56... Qxg4 {[%clk 0:00:12.7]}
57. Rg1 {[%clk 0:00:17]} 57... Rxg1+ {[%clk 0:00:12]} 58. Qxg1 {[%clk
0:00:16.9]} 58... Qxg1+ {[%clk 0:00:12.4]} 59. Kxg1 {[%clk 0:00:17.4]} 59...
e1=Q+ {[%clk 0:00:12.8]} 60. Kh2 {[%clk 0:00:17.8]} 60... Qf2+ {[%clk
0:00:12.9]} 61. Kh3 {[%clk 0:00:17.9]} 61... Qg2+ {[%clk 0:00:13.8]} 62. Kh4
{[%clk 0:00:18.1]} 62... f2 {[%clk 0:00:14.3]} 63. Kh5 {[%clk 0:00:18.2]} 63...
f1=Q {[%clk 0:00:14.7]} 64. Kh6 {[%clk 0:00:18.2]} 64... Qfh1# {[%clk
0:00:15.2]} 0-1

[Event "*** Titled Tuesday Blitz"]
[Site "Chess.com"]
[Date "2020.05.12"]
[Round "8"]
[White "L_lorenzo"]
[Black "ajian"]
[Result "0-1"]
[WhiteElo "2215"]
[BlackElo "2365"]
[TimeControl "180+1"]
[EndTime "11:33:42 PDT"]
[Termination "ajian won on time"]

1. d4 {[%clk 0:02:59.7]} 1... Nf6 {[%clk 0:02:59.7]} 2. c4 {[%clk 0:02:59.2]}
2... e6 {[%clk 0:03:00.2]} 3. Nf3 {[%clk 0:02:59]} 3... d5 {[%clk 0:03:00.3]} 4.
Nc3 {[%clk 0:02:58.5]} 4... Be7 {[%clk 0:02:57.1]} 5. Bg5 {[%clk 0:02:58.1]}
5... O-O {[%clk 0:02:56.8]} 6. e3 {[%clk 0:02:58.5]} 6... h6 {[%clk 0:02:57.3]}
7. Bf4 {[%clk 0:02:58.4]} 7... b6 {[%clk 0:02:54.6]} 8. cxd5 {[%clk 0:02:57.4]}
8... Nxd5 {[%clk 0:02:54]} 9. Nxd5 {[%clk 0:02:57.3]} 9... Qxd5 {[%clk 0:02:54]}
10. a3 {[%clk 0:02:52.5]} 10... Ba6 {[%clk 0:02:47.3]} 11. Bxa6 {[%clk 0:02:37]}
11... Nxa6 {[%clk 0:02:48.2]} 12. O-O {[%clk 0:02:37]} 12... c5 {[%clk
0:02:45.9]} 13. dxc5 {[%clk 0:02:34.6]} 13... Qxd1 {[%clk 0:02:28]} 14. Rfxd1
{[%clk 0:02:31.7]} 14... Nxc5 {[%clk 0:02:28.5]} 15. b4 {[%clk 0:02:30.3]} 15...
Ne4 {[%clk 0:02:25.6]} 16. Rd7 {[%clk 0:02:26.9]} 16... Bf6 {[%clk 0:02:24]} 17.
Be5 {[%clk 0:02:20.6]} 17... Rfd8 {[%clk 0:02:13.4]} 18. Rad1 {[%clk 0:02:18.3]}
18... Rxd7 {[%clk 0:02:00.3]} 19. Rxd7 {[%clk 0:02:17.2]} 19... Rd8 {[%clk
0:01:59.7]} 20. Rxd8+ {[%clk 0:02:14.5]} 20... Bxd8 {[%clk 0:01:59.6]} 21. Nd4
{[%clk 0:02:07.7]} 21... Bf6 {[%clk 0:01:18.7]} 22. Bxf6 {[%clk 0:01:53.9]}
22... gxf6 {[%clk 0:01:18.4]} 23. Nc6 {[%clk 0:01:45]} 23... a6 {[%clk
0:01:17.7]} 24. Nb8 {[%clk 0:01:42.2]} 24... a5 {[%clk 0:01:15.7]} 25. Nd7
{[%clk 0:01:35.9]} 25... axb4 {[%clk 0:01:13.2]} 26. axb4 {[%clk 0:01:35.4]}
26... b5 {[%clk 0:01:12.9]} 27. f3 {[%clk 0:01:34.1]} 27... Nc3 {[%clk
0:01:04.1]} 28. Nxf6+ {[%clk 0:01:33.3]} 28... Kf8 {[%clk 0:00:56.9]} 29. Nd7+
{[%clk 0:01:22.3]} 29... Ke7 {[%clk 0:00:53.8]} 30. Ne5 {[%clk 0:01:19.8]} 30...
Nd5 {[%clk 0:00:50.5]} 31. Nd3 {[%clk 0:01:08.3]} 31... Nxe3 {[%clk 0:00:50.4]}
32. Kf2 {[%clk 0:01:08.7]} 32... Nd5 {[%clk 0:00:48.4]} 33. f4 {[%clk
0:01:05.6]} 33... f6 {[%clk 0:00:45.3]} 34. g4 {[%clk 0:01:04.8]} 34... Kd6
{[%clk 0:00:44.4]} 35. Kf3 {[%clk 0:01:02.9]} 35... e5 {[%clk 0:00:39.8]} 36.
fxe5+ {[%clk 0:00:52.4]} 36... fxe5 {[%clk 0:00:40.7]} 37. Ke4 {[%clk
0:00:50.7]} 37... Nc3+ {[%clk 0:00:33.9]} 38. Kf5 {[%clk 0:00:50.1]} 38... e4
{[%clk 0:00:33.9]} 39. Ne1 {[%clk 0:00:28.6]} 39... e3 {[%clk 0:00:13.8]} 40. h4
{[%clk 0:00:28.4]} 40... Nd5 {[%clk 0:00:08]} 41. g5 {[%clk 0:00:18.6]} 41...
hxg5 {[%clk 0:00:07.6]} 42. hxg5 {[%clk 0:00:18.4]} 42... Ke7 {[%clk 0:00:06.2]}
43. Kg6 {[%clk 0:00:10.8]} 43... Nxb4 {[%clk 0:00:03]} 44. Kh7 {[%clk
0:00:10.8]} 44... Nd5 {[%clk 0:00:02.5]} 45. g6 {[%clk 0:00:09.9]} 45... b4
{[%clk 0:00:02.9]} 46. g7 {[%clk 0:00:05.6]} 46... Nf6+ {[%clk 0:00:03.2]} 47.
Kg6 {[%clk 0:00:05.2]} 47... b3 {[%clk 0:00:03.5]} 48. Kf5 {[%clk 0:00:01.4]}
48... b2 {[%clk 0:00:03.3]} 49. Nd3 {[%clk 0:00:01.2]} 49... b1=Q {[%clk
0:00:03.3]} 0-1

[Event "*** Titled Tuesday Blitz"]
[Site "Chess.com"]
[Date "2020.05.12"]
[Round "8"]
[White "NastaJ"]
[Black "HunterBRR"]
[Result "1-0"]
[WhiteElo "1988"]
[BlackElo "2008"]
[TimeControl "180+1"]
[EndTime "11:33:45 PDT"]
[Termination "NastaJ won by resignation"]

1. e4 {[%clk 0:03:00]} 1... c5 {[%clk 0:02:59.7]} 2. c3 {[%clk 0:02:59.8]} 2...
Nf6 {[%clk 0:02:58.9]} 3. e5 {[%clk 0:02:59.8]} 3... Nd5 {[%clk 0:02:58.7]} 4.
d4 {[%clk 0:03:00.4]} 4... cxd4 {[%clk 0:02:59.6]} 5. cxd4 {[%clk 0:03:00.6]}
5... d6 {[%clk 0:02:58.9]} 6. Nf3 {[%clk 0:03:01]} 6... Nc6 {[%clk 0:02:57.5]}
7. Bc4 {[%clk 0:03:00.7]} 7... Nb6 {[%clk 0:02:57.2]} 8. Bb5 {[%clk 0:03:00.9]}
8... dxe5 {[%clk 0:02:52.8]} 9. Nxe5 {[%clk 0:03:00.6]} 9... Bd7 {[%clk
0:02:52.8]} 10. Bxc6 {[%clk 0:02:51.1]} 10... Bxc6 {[%clk 0:02:39.2]} 11. Nxc6
{[%clk 0:02:50.8]} 11... bxc6 {[%clk 0:02:40.1]} 12. Nc3 {[%clk 0:02:46.4]}
12... e6 {[%clk 0:02:39.1]} 13. O-O {[%clk 0:02:46.2]} 13... Be7 {[%clk
0:02:37.4]} 14. Qg4 {[%clk 0:02:45.9]} 14... O-O {[%clk 0:02:21.8]} 15. Rd1
{[%clk 0:02:46.1]} 15... Nd5 {[%clk 0:02:09.3]} 16. Be3 {[%clk 0:01:54]} 16...
Rb8 {[%clk 0:02:00.4]} 17. Na4 {[%clk 0:01:48]} 17... Nxe3 {[%clk 0:00:58.3]}
18. fxe3 {[%clk 0:01:47.8]} 18... Qa5 {[%clk 0:00:58.1]} 19. b3 {[%clk
0:01:43.3]} 19... c5 {[%clk 0:00:51.5]} 20. dxc5 {[%clk 0:01:31.3]} 20... Bxc5
{[%clk 0:00:46.7]} 21. Nxc5 {[%clk 0:01:13.4]} 21... Qxc5 {[%clk 0:00:47.6]} 22.
Qd4 {[%clk 0:01:13.4]} 22... Qxd4 {[%clk 0:00:19.8]} 23. Rxd4 {[%clk 0:01:12.8]}
23... Rfd8 {[%clk 0:00:18.4]} 24. Rad1 {[%clk 0:01:12.3]} 24... Rxd4 {[%clk
0:00:17.1]} 25. Rxd4 {[%clk 0:01:12.3]} 25... Kf8 {[%clk 0:00:14.7]} 26. Rd7
{[%clk 0:01:10.7]} 26... a5 {[%clk 0:00:14.3]} 27. Ra7 {[%clk 0:01:09.1]} 27...
Rb5 {[%clk 0:00:14.2]} 28. Kf2 {[%clk 0:01:06.9]} 28... Rc5 {[%clk 0:00:14.1]}
29. Kf3 {[%clk 0:01:01]} 29... g6 {[%clk 0:00:11.5]} 30. h3 {[%clk 0:00:55.2]}
30... Kg7 {[%clk 0:00:11.3]} 31. g4 {[%clk 0:00:43.1]} 31... Kf6 {[%clk
0:00:11.2]} 32. Kf4 {[%clk 0:00:18.4]} 32... h5 {[%clk 0:00:10.2]} 33. g5+
{[%clk 0:00:09.6]} 33... Rxg5 {[%clk 0:00:09.5]} 34. Rxf7+ {[%clk 0:00:09.4]}
34... Kxf7 {[%clk 0:00:08.8]} 35. Kxg5 {[%clk 0:00:10]} 35... Kg7 {[%clk
0:00:08.4]} 36. a3 {[%clk 0:00:09.6]} 36... Kf7 {[%clk 0:00:06.1]} 37. b4 {[%clk
0:00:10.5]} 37... axb4 {[%clk 0:00:05.9]} 38. axb4 {[%clk 0:00:10.8]} 38... e5
{[%clk 0:00:06.8]} 39. b5 {[%clk 0:00:04.1]} 39... Ke6 {[%clk 0:00:07]} 40. Kxg6
{[%clk 0:00:04.4]} 40... Kd6 {[%clk 0:00:07.9]} 41. Kxh5 {[%clk 0:00:04.5]}
41... Kc5 {[%clk 0:00:08.2]} 42. Kg5 {[%clk 0:00:04.7]} 42... Kxb5 {[%clk
0:00:09.1]} 43. Kf5 {[%clk 0:00:05.1]} 43... Kc4 {[%clk 0:00:10]} 44. Kxe5
{[%clk 0:00:05.6]} 44... Kd3 {[%clk 0:00:10.4]} 45. e4 {[%clk 0:00:06.3]} 45...
Ke2 {[%clk 0:00:11.3]} 46. h4 {[%clk 0:00:07]} 46... Kf3 {[%clk 0:00:12.2]} 47.
h5 {[%clk 0:00:07.8]} 47... Kg3 {[%clk 0:00:13.1]} 48. h6 {[%clk 0:00:08.7]}
48... Kg4 {[%clk 0:00:14]} 49. h7 {[%clk 0:00:08.9]} 49... Kg5 {[%clk
0:00:14.9]} 50. h8=Q {[%clk 0:00:09.8]} 50... Kg4 {[%clk 0:00:15.8]} 51. Qf6
{[%clk 0:00:10]} 51... Kg3 {[%clk 0:00:15.7]} 52. Qf4+ {[%clk 0:00:10.2]} 52...
Kg2 {[%clk 0:00:16.6]} 53. Qe3 {[%clk 0:00:10.3]} 53... Kh1 {[%clk 0:00:16.6]}
54. Kf4 {[%clk 0:00:11.2]} 54... Kh2 {[%clk 0:00:17.5]} 55. Kf3 {[%clk
0:00:10.8]} 55... Kh1 {[%clk 0:00:16.1]} 56. Qe1+ {[%clk 0:00:11.7]} 56... Kh2
{[%clk 0:00:16.5]} 57. Qf2+ {[%clk 0:00:12.6]} 1-0

[Event "*** Titled Tuesday Blitz"]
[Site "Chess.com"]
[Date "2020.05.12"]
[Round "8"]
[White "albano87"]
[Black "chessablanca"]
[Result "1/2-1/2"]
[WhiteElo "2316"]
[BlackElo "2457"]
[TimeControl "180+1"]
[EndTime "11:33:46 PDT"]
[Termination "Game drawn - insufficient material"]

1. Nf3 {[%clk 0:03:00.9]} 1... d5 {[%clk 0:02:59.3]} 2. d4 {[%clk 0:03:00.3]}
2... c6 {[%clk 0:02:59.6]} 3. g3 {[%clk 0:02:55.2]} 3... Nf6 {[%clk 0:02:59.4]}
4. Bg2 {[%clk 0:02:54.6]} 4... g6 {[%clk 0:02:59.7]} 5. O-O {[%clk 0:02:54.5]}
5... Bg7 {[%clk 0:03:00.3]} 6. c4 {[%clk 0:02:54.5]} 6... O-O {[%clk 0:03:00.7]}
7. cxd5 {[%clk 0:02:53.9]} 7... cxd5 {[%clk 0:03:01.6]} 8. Nc3 {[%clk
0:02:54.6]} 8... Nc6 {[%clk 0:03:00.2]} 9. Ne5 {[%clk 0:02:55]} 9... a6 {[%clk
0:02:55]} 10. e3 {[%clk 0:02:35.3]} 10... e6 {[%clk 0:02:46.8]} 11. Nxc6 {[%clk
0:02:31.3]} 11... bxc6 {[%clk 0:02:46.5]} 12. b3 {[%clk 0:02:31.6]} 12... Nd7
{[%clk 0:02:36.3]} 13. Bb2 {[%clk 0:02:20.9]} 13... e5 {[%clk 0:02:36.2]} 14.
dxe5 {[%clk 0:02:20]} 14... Nxe5 {[%clk 0:02:35.2]} 15. Rc1 {[%clk 0:02:18]}
15... Bg4 {[%clk 0:02:27.9]} 16. Qc2 {[%clk 0:02:01.1]} 16... Nf3+ {[%clk
0:01:33.7]} 17. Kh1 {[%clk 0:02:00.3]} 17... d4 {[%clk 0:01:33.8]} 18. exd4
{[%clk 0:01:51.8]} 18... Nxd4 {[%clk 0:01:34.7]} 19. Qd2 {[%clk 0:01:33.7]}
19... Re8 {[%clk 0:01:18.1]} 20. h3 {[%clk 0:01:22.3]} 20... Be6 {[%clk
0:01:06.4]} 21. Rcd1 {[%clk 0:00:53.9]} 21... Qc8 {[%clk 0:00:40.9]} 22. Kh2
{[%clk 0:00:51.2]} 22... Bxh3 {[%clk 0:00:29.4]} 23. Bxh3 {[%clk 0:00:30.6]}
23... Nf3+ {[%clk 0:00:29.1]} 24. Kg2 {[%clk 0:00:30.8]} 24... Nxd2 {[%clk
0:00:29.4]} 25. Bxc8 {[%clk 0:00:30.4]} 25... Nxf1 {[%clk 0:00:29.5]} 26. Bg4
{[%clk 0:00:21.8]} 26... h5 {[%clk 0:00:23]} 27. Bf3 {[%clk 0:00:19.4]} 27...
Ne3+ {[%clk 0:00:19.6]} 28. fxe3 {[%clk 0:00:20.3]} 28... Rxe3 {[%clk
0:00:20.1]} 29. Na4 {[%clk 0:00:15.6]} 29... Bxb2 {[%clk 0:00:14.1]} 30. Nxb2
{[%clk 0:00:16.5]} 30... Rc8 {[%clk 0:00:13.9]} 31. Nc4 {[%clk 0:00:16.6]} 31...
Rc3 {[%clk 0:00:14]} 32. Rd2 {[%clk 0:00:16.8]} 32... c5 {[%clk 0:00:12.2]} 33.
Kf2 {[%clk 0:00:16.9]} 33... a5 {[%clk 0:00:09.9]} 34. Bd5 {[%clk 0:00:16.9]}
34... a4 {[%clk 0:00:09.6]} 35. Bxf7+ {[%clk 0:00:16.9]} 35... Kg7 {[%clk
0:00:09.1]} 36. Be6 {[%clk 0:00:08.3]} 36... axb3 {[%clk 0:00:09.1]} 37. axb3
{[%clk 0:00:08]} 37... Rxb3 {[%clk 0:00:09.4]} 38. Kg2 {[%clk 0:00:08]} 38...
Rf8 {[%clk 0:00:09.3]} 39. Nd6 {[%clk 0:00:05.4]} 39... Rb4 {[%clk 0:00:08.4]}
40. Bc4 {[%clk 0:00:04.3]} 40... Rf6 {[%clk 0:00:07.7]} 41. Ne8+ {[%clk
0:00:02.2]} 41... Kf8 {[%clk 0:00:05.7]} 42. Nxf6 {[%clk 0:00:03.1]} 42... Rxc4
{[%clk 0:00:06.2]} 43. Nd7+ {[%clk 0:00:03]} 43... Ke7 {[%clk 0:00:06.4]} 44.
Ne5 {[%clk 0:00:03.6]} 44... Re4 {[%clk 0:00:06.8]} 45. Nxg6+ {[%clk 0:00:04]}
45... Kf6 {[%clk 0:00:07.6]} 46. Nf4 {[%clk 0:00:04.6]} 46... h4 {[%clk
0:00:08.1]} 47. Kf3 {[%clk 0:00:03.9]} 47... Ra4 {[%clk 0:00:07.2]} 48. gxh4
{[%clk 0:00:04.4]} 48... Ra3+ {[%clk 0:00:07.2]} 49. Ke4 {[%clk 0:00:04.7]}
49... Ra4+ {[%clk 0:00:07.4]} 50. Ke3 {[%clk 0:00:05.2]} 50... Kf5 {[%clk
0:00:07.7]} 51. Rd5+ {[%clk 0:00:04.9]} 51... Kg4 {[%clk 0:00:08]} 52. h5 {[%clk
0:00:04.3]} 52... Rxf4 {[%clk 0:00:07.7]} 53. h6 {[%clk 0:00:04.9]} 53... Rf7
{[%clk 0:00:07.8]} 54. Rxc5 {[%clk 0:00:04.5]} 54... Re7+ {[%clk 0:00:08.2]} 55.
Kd4 {[%clk 0:00:03.4]} 55... Rh7 {[%clk 0:00:08.8]} 56. Rc6 {[%clk 0:00:03.6]}
56... Kg5 {[%clk 0:00:08.9]} 57. Ke5 {[%clk 0:00:03.9]} 57... Rxh6 {[%clk
0:00:09.2]} 58. Rxh6 {[%clk 0:00:02.8]} 58... Kxh6 {[%clk 0:00:10.1]} 1/2-1/2

[Event "*** Titled Tuesday Blitz"]
[Site "Chess.com"]
[Date "2020.05.12"]
[Round "8"]
[White "dolynachess"]
[Black "AGW2016"]
[Result "0-1"]
[WhiteElo "2341"]
[BlackElo "2150"]
[TimeControl "180+1"]
[EndTime "11:33:47 PDT"]
[Termination "AGW2016 won by resignation"]

1. d4 {[%clk 0:03:00.9]} 1... Nf6 {[%clk 0:02:59.7]} 2. c4 {[%clk 0:03:00.8]}
2... g6 {[%clk 0:02:58.6]} 3. Nc3 {[%clk 0:03:01]} 3... Bg7 {[%clk 0:02:59.3]}
4. Nf3 {[%clk 0:03:00.8]} 4... d6 {[%clk 0:02:59.9]} 5. e4 {[%clk 0:03:00]} 5...
O-O {[%clk 0:03:00.6]} 6. Be2 {[%clk 0:03:00.5]} 6... e5 {[%clk 0:03:01.2]} 7.
d5 {[%clk 0:02:59.3]} 7... a5 {[%clk 0:03:00.7]} 8. Be3 {[%clk 0:02:58.7]} 8...
Ng4 {[%clk 0:03:00.4]} 9. Bg5 {[%clk 0:02:59.3]} 9... f6 {[%clk 0:02:59.5]} 10.
Bh4 {[%clk 0:02:59.5]} 10... Nh6 {[%clk 0:02:58]} 11. Nd2 {[%clk 0:02:57.9]}
11... Na6 {[%clk 0:02:57.2]} 12. a3 {[%clk 0:02:55]} 12... Bd7 {[%clk
0:02:56.1]} 13. f3 {[%clk 0:02:51.3]} 13... Qe8 {[%clk 0:02:53]} 14. b3 {[%clk
0:02:49.4]} 14... f5 {[%clk 0:02:48.7]} 15. Bf2 {[%clk 0:02:46.8]} 15... Nf7
{[%clk 0:02:47.9]} 16. Rb1 {[%clk 0:02:43.5]} 16... Nc5 {[%clk 0:02:45.9]} 17.
O-O {[%clk 0:02:32.9]} 17... h5 {[%clk 0:02:40.3]} 18. b4 {[%clk 0:02:06.6]}
18... axb4 {[%clk 0:02:40]} 19. axb4 {[%clk 0:02:07.4]} 19... Na4 {[%clk
0:02:40.7]} 20. Qb3 {[%clk 0:01:59]} 20... Nxc3 {[%clk 0:02:40.1]} 21. Qxc3
{[%clk 0:01:59.3]} 21... Bh6 {[%clk 0:02:39.4]} 22. Ra1 {[%clk 0:01:49.6]} 22...
Qe7 {[%clk 0:02:36.6]} 23. c5 {[%clk 0:01:46]} 23... Qg5 {[%clk 0:02:22.8]} 24.
Nc4 {[%clk 0:01:38.4]} 24... h4 {[%clk 0:01:44.3]} 25. Rxa8 {[%clk 0:01:00.5]}
25... Rxa8 {[%clk 0:01:42.7]} 26. cxd6 {[%clk 0:01:01]} 26... h3 {[%clk
0:01:24.5]} 27. g3 {[%clk 0:00:59.6]} 27... cxd6 {[%clk 0:01:08.5]} 28. Nb6
{[%clk 0:00:58]} 28... Rd8 {[%clk 0:01:00.3]} 29. Nxd7 {[%clk 0:00:46.5]} 29...
Rxd7 {[%clk 0:01:00.3]} 30. Qc8+ {[%clk 0:00:44.5]} 30... Rd8 {[%clk 0:01:00.7]}
31. Qe6 {[%clk 0:00:31.5]} 31... Kg7 {[%clk 0:00:54.8]} 32. exf5 {[%clk
0:00:17.8]} 32... Qxf5 {[%clk 0:00:44.2]} 33. Qxf5 {[%clk 0:00:16.5]} 33... gxf5
{[%clk 0:00:43.7]} 34. Ra1 {[%clk 0:00:16.5]} 34... Rc8 {[%clk 0:00:41.9]} 35.
Kf1 {[%clk 0:00:15.5]} 35... e4 {[%clk 0:00:39.4]} 36. fxe4 {[%clk 0:00:15]}
36... fxe4 {[%clk 0:00:39.8]} 37. Bd4+ {[%clk 0:00:15.3]} 37... Ne5 {[%clk
0:00:39]} 38. Bg4 {[%clk 0:00:15.4]} 38... Rc4 {[%clk 0:00:37.9]} 39. Bxe5+
{[%clk 0:00:14.2]} 39... dxe5 {[%clk 0:00:38.6]} 40. Bxh3 {[%clk 0:00:14.6]}
40... e3 {[%clk 0:00:38.2]} 41. Bf5 {[%clk 0:00:13.4]} 41... Rxb4 {[%clk
0:00:38.1]} 42. h4 {[%clk 0:00:10.6]} 42... Rd4 {[%clk 0:00:37]} 43. g4 {[%clk
0:00:08.6]} 43... Bf4 {[%clk 0:00:34.6]} 44. Ra7 {[%clk 0:00:08.3]} 44... Rd1+
{[%clk 0:00:30.2]} 45. Ke2 {[%clk 0:00:08.1]} 45... Rd2+ {[%clk 0:00:30.5]} 46.
Kf1 {[%clk 0:00:08.4]} 46... e2+ {[%clk 0:00:27.7]} 47. Ke1 {[%clk 0:00:08.7]}
47... Rb2 {[%clk 0:00:28.3]} 48. Ra3 {[%clk 0:00:07.8]} 48... Bd2+ {[%clk
0:00:20.8]} 49. Kxe2 {[%clk 0:00:08]} 49... Bb4+ {[%clk 0:00:21.4]} 50. Kd3
{[%clk 0:00:07.8]} 50... Bxa3 {[%clk 0:00:21.8]} 51. Ke4 {[%clk 0:00:06.3]}
51... Bd6 {[%clk 0:00:21.8]} 52. g5 {[%clk 0:00:05.7]} 52... Rh2 {[%clk
0:00:20.7]} 0-1